bitfinex-derivatives/quotes_SOLF0:USTF0_20251223
["timestamp","ask_amount","ask_price","bid_price","bid_amount"]
[1766468080951,100.47186369,124.67,124.59,3.45]
[1766468081151,94.8,124.67,124.59,3.45]
[1766468081653,0.0028776,124.64,124.62,0.06162355]
[1766468082252,0.0028776,124.64,124.62,0.00162355]
[1766468084553,0.0028776,124.64,124.58,3.45]
[1766468085552,0.0028776,124.64,124.6,0.05707673]
[1766468087849,94.8,124.63,124.57,3.45]
[1766468088345,100.47186369,124.63,124.57,3.45]
[1766468088851,212.88906369,124.63,124.59,0.05735243]
[1766468089049,212.88906369,124.63,124.5,112.5203]
[1766468089561,0.05598975,124.58,124.55,0.06068499]
[1766468089759,0.05598975,124.58,124.55,0.0517508]
[1766468090848,94.8,124.62,124.55,3.5017508]
[1766468091043,94.8,124.62,124.55,3.45]
[1766468091444,102.0273,124.62,124.52,3.45]
[1766468091855,0.05047224,124.58,124.56,0.05995614]
[1766468093247,0.05047224,124.58,124.52,3.45]
[1766468093847,0.00047224,124.58,124.52,3.45]
[1766468095053,0.00047224,124.58,124.54,3.39124843]
[1766468095743,5.67186369,124.63,124.54,3.39124843]
[1766468095948,107.71736369,124.65,124.54,3.34]
[1766468096662,0.05298578,124.61,124.58,0.06000267]
[1766468100347,0.00298578,124.61,124.58,0.06000267]
[1766468100852,0.00298578,124.61,124.58,2.67e-06]
[1766468101065,212.93006369,124.6,124.52,3.34]
[1766468101249,94.82,124.6,124.52,3.34]
[1766468101448,7.2278,124.61,124.52,3.34]
[1766468101654,100.49186369,124.6,124.52,3.34]
[1766468102050,0.06149891,124.57,124.55,0.05368333]
[1766468102654,5.67186369,124.62,124.55,0.05368333]
[1766468102958,100.49186369,124.62,124.55,3.39368333]
[1766468103662,0.06061221,124.6,124.55,3.39368333]
[1766468103956,0.00061221,124.6,124.55,3.39368333]
[1766468104161,100.49186369,124.65,124.55,3.39368333]
[1766468104349,100.49186369,124.65,124.55,3.34]
[1766468104548,100.49186369,124.65,124.56,3.34]
[1766468105165,0.05436039,124.62,124.59,0.05914551]
[1766468106355,12.89556369,124.68,124.59,3.37914551]
[1766468106550,94.82,124.67,124.59,3.32]
[1766468106752,5.67186369,124.71,124.61,3.32]
[1766468106950,5.67186369,124.69,124.61,3.32]
[1766468107356,0.00097011,124.66,124.64,0.05496205]
[1766468107554,5.67186369,124.71,124.62,3.32]
[1766468107768,5.67186369,124.73,124.64,3.32]
[1766468107955,100.49186369,124.75,124.64,3.32]
[1766468108155,94.82,124.75,124.67,3.32]
[1766468108352,112.2472,124.82,124.67,3.32]
[1766468108353,112.2472,124.82,124.7,3.37078785]
[1766468108562,112.2472,124.82,124.7,3.32]
[1766468108563,100.49186369,124.81,124.7,3.32]
[1766468108864,94.82,124.8,124.71,3.32]
[1766468109562,0.05974399,124.77,124.74,0.06136037]
[1766468109952,0.05974399,124.77,124.68,112.3632]
[1766468109953,5.73160768,124.77,124.68,3.32]
[1766468110153,5.67186369,124.79,124.68,3.32]
[1766468110466,5.67186369,124.79,124.7,3.32]
[1766468110965,0.05555075,124.76,124.73,0.05661527]
[1766468112368,5.67186369,124.8,124.73,0.05661527]
[1766468112665,5.67186369,124.8,124.73,3.37661527]
[1766468112966,5.67186369,124.82,124.73,3.37661527]
[1766468113164,5.67186369,124.82,124.73,3.32]
[1766468113674,5.67186369,124.82,124.76,0.05205095]
[1766468113675,0.05907774,124.79,124.76,0.05205095]
[1766468116964,94.78,124.83,124.76,3.37205095]
[1766468118363,5.81473844,124.85,124.76,3.37205095]
[1766468118667,97.44429971,124.86,124.79,0.05980258]
[1766468118866,97.44429971,124.86,124.79,3.37980258]
[1766468119068,94.74,124.86,124.79,3.37980258]
[1766468119367,100.55473844,124.88,124.79,3.37980258]
[1766468119576,94.74,124.88,124.82,0.05191663]
[1766468120370,94.74,124.88,124.82,3.37191663]
[1766468120578,119.12634071,124.95,124.82,3.37191663]
[1766468120875,214.0779,124.93,124.86,0.05670572]
[1766468121269,112.1538,124.92,124.86,0.05670572]
[1766468121467,7.2101,124.92,124.86,0.05670572]
[1766468121667,94.72,124.93,124.86,0.05670572]
[1766468121974,119.3825,124.9,124.81,3.32]
[1766468122178,119.14744071,124.92,124.81,3.32]
[1766468122477,206.8658,124.93,124.81,3.32]
[1766468122868,0.0578837,124.88,124.86,0.05771857]
[1766468123167,0.06053893,124.88,124.86,0.05771857]
[1766468124973,0.06053893,124.88,124.8,3.32]
[1766468125169,7.2109,124.9,124.8,3.32]
[1766468125560,6.99504071,124.91,124.8,3.32]
[1766468125763,119.15744071,124.91,124.8,3.32]
[1766468125965,0.05880297,124.87,124.84,0.05352883]
[1766468126268,0.05880297,124.87,124.77,3.32]
[1766468126575,94.68,124.88,124.78,3.32]
[1766468126768,94.68,124.88,124.79,3.32]
[1766468127173,0.05052989,124.85,124.82,0.05669769]
[1766468127676,94.68,124.88,124.82,0.05669769]
[1766468128065,112.1614,124.91,124.82,0.05669769]
[1766468128263,94.66,124.9,124.81,3.2]
[1766468128775,0.05261766,124.87,124.84,0.05969904]
[1766468128976,0.05261766,124.87,124.81,3.2]
[1766468129569,112.2344,124.83,124.76,80.62]
[1766468129766,112.2792,124.78,124.69,3.2]
[1766468129972,0.05738611,124.75,124.72,0.05112601]
[1766468130172,0.05738611,124.75,124.66,3.2]
[1766468130377,112.3069,124.75,124.66,3.2]
[1766468130582,112.3143,124.74,124.66,3.2]
[1766468130780,112.3352,124.72,124.63,3.2]
[1766468131080,207.0037,124.71,124.63,3.2]
[1766468131284,0.0548921,124.68,124.66,0.05337408]
[1766468137377,94.68,124.71,124.66,3.56337408]
[1766468138686,94.72,124.74,124.66,3.56337408]
[1766468138889,94.72,124.74,124.66,3.51]
[1766468139383,94.72,124.74,124.69,0.0597334]
[1766468140381,0.05104063,124.73,124.69,0.0597334]
[1766468141282,0.05104063,124.73,124.69,3.5697334]
[1766468141587,94.72,124.77,124.69,3.5697334]
[1766468141789,94.72,124.77,124.69,3.51]
[1766468142186,94.72,124.77,124.7,3.51]
[1766468142584,0.02418753,124.75,124.72,0.05908138]
[1766468142982,0.00418753,124.75,124.72,0.05908138]
[1766468143190,94.72,124.77,124.72,0.05908138]
[1766468144883,112.2603,124.8,124.72,0.05908138]
[1766468144884,124.4968712,124.81,124.72,0.05908138]
[1766468145082,94.72,124.8,124.75,0.05920963]
[1766468145382,94.72,124.79,124.75,0.05920963]
[1766468147109,7.2163,124.81,124.75,0.05920963]
[1766468147307,94.72,124.8,124.75,0.05920963]
[1766468149212,119.4459,124.83,124.75,0.05920963]
[1766468149403,94.72,124.82,124.78,0.0522657]
[1766468150497,94.72,124.82,124.69,207.0484]
[1766468150498,112.2803,124.78,124.67,3.51]
[1766468150699,112.304,124.75,124.64,3.51]
[1766468151610,0.0522657,124.71,124.68,0.05885084]
[1766468152813,0.0022657,124.71,124.68,0.05885084]
[1766468153603,94.7,124.74,124.68,0.05885084]
[1766468154105,94.7,124.75,124.68,3.56885084]
[1766468154304,94.7,124.75,124.68,3.51]
[1766468154711,94.7,124.75,124.7,0.05447313]
[1766468155107,94.7,124.75,124.7,3.56447313]
[1766468155304,112.2299,124.84,124.72,3.51]
[1766468155499,94.72,124.83,124.77,0.05455915]
[1766468156814,214.1683,124.83,124.77,0.05455915]
[1766468157916,7.2158,124.82,124.77,0.05455915]
[1766468158215,94.72,124.83,124.77,0.05455915]
[1766468158512,206.9241,124.84,124.77,0.05455915]
[1766468158818,206.9241,124.84,124.73,3.41]
[1766468159713,0.05910222,124.8,124.77,0.05621842]
[1766468160310,94.7,124.79,124.77,0.05621842]
[1766468162501,0.05910222,124.8,124.77,0.05621842]
[1766468162907,94.7,124.83,124.77,3.46621842]
[1766468163115,112.1633,124.91,124.78,3.41]
[1766468163116,94.7,124.86,124.78,3.41]
[1766468164020,94.7,124.86,124.81,0.05915028]
[1766468164816,94.7,124.87,124.81,0.05915028]
[1766468165015,94.7,124.87,124.83,0.05935554]
[1766468166110,7.2106,124.91,124.83,0.05935554]
[1766468166317,94.68,124.9,124.86,0.05263596]
[1766468166722,94.68,124.9,124.86,0.00263596]
[1766468167819,112.2042,124.86,124.76,3.65]
[1766468168020,94.68,124.85,124.73,3.65]
[1766468168314,214.1082,124.85,124.73,3.65]
[1766468168818,0.05110348,124.8,124.78,0.05081242]
[1766468169012,0.05263596,124.8,124.78,0.05081242]
[1766468169816,0.00263596,124.8,124.78,0.05081242]
[1766468171817,0.00263596,124.8,124.78,3.70081242]
[1766468172519,0.00263596,124.8,124.78,0.05081242]
[1766468173617,0.00263596,124.8,124.78,3.70081242]
[1766468173817,0.00263596,124.8,124.78,5.30081242]
[1766468174014,0.00263596,124.8,124.79,3.65]
[1766468174524,0.00263596,124.8,124.79,10.8671]
[1766468175412,112.1117,124.97,124.85,3.65]
[1766468175612,112.0987,124.98,124.85,3.65]
[1766468175613,206.7338,125.01,124.88,3.65]
[1766468175820,112.0989,124.98,124.88,3.65]
[1766468176322,112.0882,124.99,124.88,3.65]
[1766468176323,112.0882,124.99,124.92,0.05073512]
[1766468177621,7.2066,124.98,124.92,0.05073512]
[1766468178731,119.3053,124.98,124.92,0.05073512]
[1766468179018,119.3723,124.96,124.85,3.65]
[1766468179226,94.62,124.95,124.85,3.65]
[1766468180018,0.05073512,124.91,124.89,0.05162354]
[1766468185922,7.2076,124.96,124.89,0.05162354]
[1766468186123,94.6,124.96,124.89,0.05162354]
[1766468188826,94.6,124.96,124.89,3.70162354]
[1766468189021,94.58,124.99,124.89,3.70162354]
[1766468189217,94.58,124.99,124.93,0.0562484]
[1766468190329,94.58,124.98,124.93,0.0562484]
[1766468190525,94.58,124.98,124.94,0.05982837]
[1766468190734,17.55978122,125.02,124.94,0.05982837]
[1766468190925,7.2027,125.04,124.97,0.05470024]
[1766468191232,0.05535222,125.02,124.93,3.65]
[1766468191426,94.58,125.03,124.93,3.65]
[1766468191622,94.58,125.03,124.94,3.65]
[1766468191822,94.58,125.03,124.95,3.65]
[1766468192228,0.05535222,125.0,124.98,0.05969975]
[1766468193436,19.21542956,125.07,124.98,0.05969975]
[1766468193735,19.21542956,125.07,124.98,3.65]
[1766468193736,4.49161513,125.07,124.98,3.65]
[1766468193917,99.07161513,125.07,124.98,3.65]
[1766468194531,99.07161513,125.07,125.01,0.0532714]
[1766468195430,119.54731443,125.06,125.01,0.0032714]
[1766468195617,119.54731443,125.06,124.95,5.03]
[1766468196324,119.237,125.05,124.95,5.03]
[1766468196521,0.0532714,125.01,124.99,0.00064278]
[1766468196738,0.0532714,125.01,124.95,5.03]
[1766468197432,0.0532714,125.01,124.92,5.19]
[1766468197635,94.54,125.02,124.92,5.19]
[1766468197835,0.0595072,124.98,124.96,0.05176092]
[1766468199538,0.0595072,124.98,124.96,0.00176092]
[1766468211338,94.54,125.0,124.96,0.00176092]
[1766468212336,0.05495229,124.99,124.96,0.00176092]
[1766468217952,0.00495229,124.99,124.96,5.19176092]
[1766468218844,94.52,125.03,124.96,5.19176092]
[1766468219436,94.52,125.03,124.96,0.00176092]
[1766468219835,0.04945469,125.01,124.96,0.00176092]
[1766468223537,94.52,125.0,124.96,0.00176092]
[1766468227954,0.04945469,125.01,124.96,0.00176092]
[1766468228150,94.52,125.0,124.96,0.00176092]
[1766468230348,94.52,125.0,124.9,7.2104]
[1766468230548,94.52,125.0,124.9,13.5804]
[1766468231044,206.6005,125.0,124.9,6.37]
[1766468231248,0.05083516,124.96,124.9,6.37]
[1766468231445,94.57083516,124.96,124.9,6.37]
[1766468232252,94.57083516,124.96,124.92,0.05829623]
[1766468234953,94.57083516,124.96,124.87,6.37]
[1766468235153,94.52,124.96,124.87,6.37]
[1766468235354,94.52,124.96,124.88,6.37]
[1766468235652,94.52,124.95,124.88,6.37]
[1766468235851,0.05756275,124.93,124.9,0.05108712]
[1766468236455,7.2052,125.0,124.9,6.42108712]
[1766468236456,94.52,124.96,124.9,6.42108712]
[1766468236657,94.52,124.96,124.9,6.37]
[1766468237361,94.52,124.96,124.92,0.05453709]
[1766468237362,0.05299408,124.94,124.92,0.05453709]
[1766468247461,0.05299408,124.94,124.92,0.00453709]
[1766468248671,0.05299408,124.94,124.89,6.37]
[1766468249865,0.05299408,124.94,124.9,0.05759417]
[1766468252068,0.05299408,124.94,124.85,6.37]
[1766468252271,94.52,124.96,124.85,6.37]
[1766468252667,7.2069,124.97,124.86,6.37]
[1766468252970,94.54,124.95,124.86,6.37]
[1766468253166,0.0526804,124.93,124.9,0.05349786]
[1766468254074,0.0526804,124.93,124.9,0.00349786]
[1766468271986,0.0526804,124.93,124.9,6.79349786]
[1766468272482,94.56,124.97,124.9,6.79349786]
[1766468272687,116.11226011,125.04,124.9,6.79349786]
[1766468272688,94.56,125.0,124.92,6.79]
[1766468273377,94.56,125.0,124.93,6.79]
[1766468273579,0.0548196,124.98,124.95,0.0609474]
[1766468280090,94.54,125.03,124.95,6.8509474]
[1766468280291,94.54,125.03,124.96,6.79]
[1766468280994,94.54,125.03,124.94,6.79]
[1766468281291,0.05762989,125.0,124.97,0.06111554]
[1766468281789,0.05762989,125.0,124.97,0.00111554]
[1766468283191,0.05762989,125.0,124.92,6.79]
[1766468283394,4.06176011,125.0,124.9,6.79]
[1766468284194,0.06055867,124.96,124.94,0.05166965]
[1766468284392,0.05737145,124.96,124.94,0.05166965]
[1766468285592,0.05737145,124.96,124.9,6.79]
[1766468285786,4.11913156,124.96,124.88,6.79]
[1766468285989,4.06176011,124.96,124.88,6.79]
[1766468286393,94.52,124.98,124.88,6.79]
[1766468286582,98.58176011,124.98,124.92,0.06104843]
[1766468286787,0.05901644,124.94,124.92,0.06104843]
[1766468288687,94.52,124.98,124.92,6.99104843]
[1766468289192,4.06176011,125.01,124.92,6.99104843]
[1766468289497,4.06176011,125.01,124.89,119.3857]
[1766468289498,4.06176011,124.99,124.89,14.141]
[1766468289699,0.05445239,124.95,124.93,0.0597202]
[1766468291293,0.00445239,124.95,124.93,0.0597202]
[1766468291502,4.06176011,124.99,124.93,0.0597202]
[1766468292391,0.05642261,124.97,124.93,0.0597202]
[1766468295802,0.05642261,124.97,124.93,6.9897202]
[1766468300597,94.52,125.0,124.94,6.93]
[1766468300898,130.45796011,125.1,124.94,6.93]
[1766468300899,4.06176011,125.05,124.94,6.93]
[1766468301103,98.60176011,125.05,124.94,6.93]
[1766468301301,98.60176011,125.05,124.95,7.2073]
[1766468301505,0.05644842,125.01,124.99,0.05135097]
[1766468306107,0.05644842,125.01,124.99,0.00135097]
[1766468308313,2.59693196,125.05,124.99,6.93135097]
[1766468309211,0.0566212,125.03,124.99,6.93135097]
[1766468310812,2.59693196,125.05,124.99,6.93135097]
[1766468311015,7.08854709,125.07,125.0,6.93]
[1766468311309,2.59693196,125.05,125.0,6.93]
[1766468311897,0.04303164,125.04,125.01,0.05462739]
[1766468315323,4.49161513,125.07,125.02,7.21]
[1766468316226,7.08854709,125.07,125.02,7.21]
[1766468316423,7.08854709,125.07,125.01,0.05462739]
[1766468317530,2.59693196,125.05,125.01,0.05462739]
[1766468317919,7.08854709,125.07,125.01,7.36462739]
[1766468319529,2.59693196,125.05,125.01,7.36462739]
[1766468319728,2.59693196,125.05,125.01,0.05462739]
[1766468319931,2.59693196,125.03,124.96,7.2071]
[1766468320230,2.59693196,125.03,124.97,7.31]
[1766468321017,0.05462739,125.01,124.99,0.05453296]
[1766468321516,2.65155935,125.01,124.94,76.5182]
[1766468321723,2.65155935,125.01,124.95,7.31]
[1766468321929,2.65155935,125.01,124.92,7.31]
[1766468322131,2.59693196,125.01,124.92,7.31]
[1766468322526,0.05978693,124.98,124.95,0.0561161]
[1766468323635,2.59693196,125.01,124.95,7.3661161]
[1766468324435,94.48,125.02,124.95,7.3661161]
[1766468324635,0.04937342,125.0,124.95,7.3661161]
[1766468324836,0.04937342,125.0,124.96,7.3696707]
[1766468330144,4.49161513,125.07,124.98,7.31]
[1766468330441,2.59693196,125.05,124.98,7.31]
[1766468330642,2.59693196,125.06,124.98,7.31]
[1766468331232,2.59693196,125.06,125.01,0.06105436]
[1766468332937,2.59693196,125.04,124.96,7.31]
[1766468333139,94.5,125.03,124.96,7.31]
[1766468333735,94.5,125.03,124.98,0.05774295]
[1766468333944,0.06058954,125.01,124.98,0.05774295]
[1766468340950,11.69301513,125.07,124.98,7.36774295]
[1766468340951,2.59693196,125.06,124.98,7.36774295]
[1766468341150,98.99161513,125.07,124.98,7.31]
[1766468341851,98.99161513,125.07,124.99,7.31]
[1766468342148,98.99161513,125.07,125.02,0.05691474]
[1766468344058,4.49161513,125.07,125.02,0.05691474]
[1766468344259,94.48,125.06,125.02,0.05691474]
[1766468344753,97.07693196,125.06,124.99,7.31]
[1766468344960,2.59693196,125.04,124.99,7.31]
[1766468345962,0.05737956,125.03,125.0,0.05057542]
[1766468358773,0.05737956,125.03,124.91,238.94033686]
[1766468358774,2.59693196,125.01,124.93,8.0]
[1766468358966,2.59693196,124.98,124.93,8.0]
[1766468359168,94.48,125.0,124.93,8.0]
[1766468359669,0.05498912,124.98,124.95,8.05887247]
[1766468363886,0.05498912,124.98,124.95,0.05887247]
[1766468364097,2.59693196,124.97,124.91,8.0]
[1766468364966,2.59693196,124.97,124.93,0.05052955]
[1766468365172,0.05175481,124.95,124.93,0.05052955]
[1766468366985,0.00175481,124.95,124.93,0.05052955]
[1766468369078,0.00175481,124.95,124.93,8.05052955]
[1766468369988,0.00175481,124.95,124.93,0.05052955]
[1766468387900,0.00175481,124.95,124.93,8.03052955]
[1766468388282,11.26703752,125.0,124.93,8.03052955]
[1766468388592,94.54,124.99,124.93,8.03052955]
[1766468389287,0.05267563,124.97,124.93,8.03052955]
[1766468396004,0.00267563,124.97,124.93,8.03052955]
[1766468397905,94.54,124.99,124.93,8.03052955]
[1766468398207,94.54,124.99,124.93,7.98]
[1766468398701,94.54,124.99,124.94,7.98]
[1766468398899,0.05700569,124.98,124.95,0.0610773]
[1766468399100,0.05700569,124.98,124.95,8.0410773]
[1766468405012,94.59700569,124.98,124.95,8.0410773]
[1766468405514,0.05700569,124.98,124.95,8.0410773]
[1766468405716,94.59700569,124.98,124.95,8.0410773]
[1766468410215,94.54,124.99,124.95,8.0410773]
[1766468413515,94.54,124.99,124.95,0.0610773]
[1766468425132,98.60173752,124.99,124.95,0.0610773]
[1766468425424,98.60173752,124.99,124.92,7.45]
[1766468426229,0.05755554,124.97,124.94,0.05203293]
[1766468426431,94.52,124.96,124.94,0.05203293]
[1766468434735,94.54,124.96,124.94,0.05203293]
[1766468434940,0.05755554,124.97,124.94,8.21203293]
[1766468435143,2.59871331,125.0,124.94,8.21203293]
[1766468435439,94.54,124.99,124.94,8.16]
[1766468435641,2.59871331,125.02,124.95,8.16]
[1766468435834,94.54,125.01,124.95,8.16]
[1766468436138,94.54,125.01,124.94,7.2082]
[1766468436139,94.54,125.01,124.97,0.05308483]
[1766468437535,94.54,125.01,124.97,8.12308483]
[1766468437926,0.13,125.04,124.97,120.22628483]
[1766468438239,4.49161513,125.07,124.98,8.07]
[1766468438240,97.13871331,125.05,124.98,8.07]
[1766468438433,97.13871331,125.05,125.0,8.12599419]
[1766468440134,97.35871331,125.05,125.0,0.05599419]
[1766468441135,0.21,125.02,124.96,15.2771]
[1766468441338,94.73,125.02,124.96,15.2771]
[1766468441846,2.84871331,125.01,124.94,8.07]
[1766468442347,0.05818231,124.99,124.96,0.06046596]
[1766468445944,0.05818231,124.99,124.96,8.13046596]
[1766468446151,97.53871331,125.03,124.96,8.13046596]
[1766468446449,97.53871331,125.03,124.96,8.07]
[1766468447152,97.53871331,125.03,124.98,0.05310267]
[1766468449546,3.01871331,125.03,124.98,0.05310267]
[1766468449752,97.51871331,125.03,124.98,0.05310267]
[1766468461059,1.02,125.0,124.98,0.00310267]
[1766468461960,1.07672496,125.0,124.98,0.00310267]
[1766468465059,0.05672496,125.0,124.98,0.00310267]
[1766468470255,1.44672496,125.0,124.98,0.00310267]
[1766468470565,1.39,124.98,124.92,8.64]
[1766468470762,2.59871331,124.97,124.92,8.64]
[1766468471479,1.475767,124.96,124.9,8.64]
[1766468471666,4.07448031,124.96,124.9,8.64]
[1766468472470,4.07448031,124.96,124.92,0.05432797]
[1766468473066,1.475767,124.96,124.92,0.05432797]
[1766468480575,1.67,125.02,124.94,112.1304]
[1766468480779,1.67,125.02,124.95,8.64]
[1766468481072,1.67,125.01,124.93,8.64]
[1766468481375,1.67,124.99,124.93,8.64]
[1766468481572,0.05488554,124.97,124.95,0.05263282]
[1766468482469,0.05488554,124.97,124.95,0.00263282]
[1766468489770,1.90488554,124.97,124.95,0.00263282]
[1766468490480,1.90488554,124.97,124.91,8.64]
[1766468491585,1.90488554,124.97,124.93,0.05438296]
[1766468500907,0.05488554,124.97,124.93,9.02438296]
[1766468501500,2.15,124.99,124.94,8.97]
[1766468501695,2.17,125.01,124.95,16.1776]
[1766468502596,0.05388296,124.99,124.97,0.05499704]
[1766468510614,2.34,125.03,124.97,9.02499704]
[1766468511006,94.52,125.04,124.98,8.97]
[1766468511208,2.34,125.05,124.98,8.97]
[1766468511603,2.34,125.05,125.0,0.05253219]
[1766468513812,2.34,125.05,125.0,9.02253219]
[1766468520914,2.34,125.05,125.0,0.05253219]
[1766468522117,2.49,125.03,124.96,8.97]
[1766468523124,0.0510385,125.01,124.98,0.05372404]
[1766468525322,0.0510385,125.01,124.98,9.02372404]
[1766468528525,0.0510385,125.01,124.98,0.05372404]
[1766468538338,0.0010385,125.01,124.98,9.28372404]
[1766468539926,2.8110385,125.01,124.98,0.05372404]
[1766468545350,2.8110385,125.01,124.98,0.00372404]
[1766468552452,0.0010385,125.01,124.98,0.00372404]
[1766468553041,0.0010385,125.01,124.98,9.23372404]
[1766468560456,0.0010385,125.01,124.98,0.00372404]
[1766468573992,0.0010385,125.01,124.94,118.48123686]
[1766468574285,3.16,124.98,124.93,9.35]
[1766468575188,0.05621994,124.97,124.94,0.05653164]
[1766468577186,0.05621994,124.97,124.94,9.40653164]
[1766468581988,0.05621994,124.97,124.94,0.05653164]
[1766468583197,0.05621994,124.97,124.94,9.40653164]
[1766468584799,3.23,125.0,124.94,9.40653164]
[1766468587402,3.34,125.02,124.95,9.67]
[1766468587599,3.34,125.02,124.97,9.72911827]
[1766468588993,5.82992496,125.04,124.97,9.72911827]
[1766468589292,3.35,125.03,124.97,9.72911827]
[1766468609135,5.82992496,125.03,124.97,9.72911827]
[1766468610324,94.52,125.05,124.97,9.72911827]
[1766468610325,5.96992496,125.04,124.97,9.72911827]
[1766468610522,5.96992496,125.04,124.99,0.05965637]
[1766468610927,3.49,125.04,124.99,0.05965637]
[1766468611128,5.96992496,125.04,124.99,0.05965637]
[1766468613938,3.49,125.04,124.99,0.05965637]
[1766468616641,3.49,125.04,124.99,9.93965637]
[1766468621438,3.49,125.04,124.99,0.05965637]
[1766468621739,7.36390609,125.0,124.95,9.88]
[1766468622536,0.05743319,124.99,124.96,0.05192804]
[1766468623039,0.05743319,124.99,124.96,9.93192804]
[1766468636646,98.0,125.01,124.96,9.93192804]
[1766468636842,94.5,125.01,124.96,9.93192804]
[1766468640358,7.50390609,125.0,124.96,9.93192804]
[1766468640657,7.50390609,125.0,124.96,0.05192804]
[1766468641455,3.64,124.99,124.94,9.88]
[1766468642454,0.05710308,124.98,124.95,0.05718551]
[1766468643153,0.05710308,124.98,124.95,9.93718551]
[1766468644358,3.87390609,125.0,124.95,9.93718551]
[1766468644659,94.5,125.01,124.95,9.93718551]
[1766468646852,7.59390609,125.0,124.95,9.93718551]
[1766468650347,7.59390609,125.0,124.95,0.05718551]
[1766468650348,3.73,124.99,124.95,0.05718551]
[1766468660668,3.71,124.97,124.91,9.28]
[1766468661062,7.58390609,124.96,124.91,9.28]
[1766468661657,0.05587169,124.95,124.92,0.05856014]
[1766468675174,6.29793484,124.95,124.92,0.05856014]
[1766468675376,2.48206315,124.93,124.9,10.14]
[1766468675583,2.48206315,124.93,124.88,10.14]
[1766468676380,0.05463948,124.92,124.89,0.06023246]
[1766468678476,0.05463948,124.92,124.89,9.71023246]
[1766468678983,0.00463948,124.92,124.89,9.71023246]
[1766468680474,100.87206315,124.97,124.9,9.65]
[1766468681176,3.83,124.96,124.9,9.65]
[1766468681380,0.05058952,124.94,124.92,0.05126863]
[1766468682579,0.00058952,124.94,124.92,9.70126863]
[1766468683381,2.48206315,124.97,124.92,9.70126863]
[1766468683583,100.87206315,124.98,124.92,9.70126863]
[1766468691392,98.39,124.98,124.92,9.70126863]
[1766468692180,6.39206315,125.01,124.94,9.65]
[1766468692491,6.39206315,125.01,124.96,0.05908038]
[1766468693890,3.91,125.01,124.96,0.05908038]
[1766468694094,2.48206315,125.02,124.96,9.70908038]
[1766468694287,3.91,125.01,124.96,9.70908038]
[1766468701394,2.48206315,125.0,124.96,9.70908038]
[1766468701798,3.91,125.01,124.96,9.70908038]
[1766468702103,2.48206315,125.02,124.96,9.70908038]
[1766468702303,6.41206315,125.02,124.96,9.70908038]
[1766468702894,3.93,125.01,124.96,9.70908038]
[1766468703497,3.93,125.01,124.96,0.05908038]
[1766468704007,2.48206315,125.0,124.96,0.05908038]
[1766468704800,2.48206315,125.0,124.96,9.70908038]
[1766468705903,3.93,125.01,124.96,9.70908038]
[1766468708202,2.48206315,125.02,124.96,9.70908038]
[1766468710113,6.42206315,125.02,124.96,9.70908038]
[1766468711615,94.56,125.04,124.96,0.05908038]
[1766468711616,2.48206315,125.0,124.96,0.05908038]
[1766468711914,2.48206315,125.0,124.97,0.05869479]
[1766468712815,3.94,125.01,124.97,0.05869479]
[1766468713022,2.48206315,125.0,124.97,0.05869479]
[1766468719525,3.89,124.99,124.93,111.5889]
[1766468720216,3.89,124.99,124.94,9.84]
[1766468720415,0.05803778,124.98,124.95,0.05825746]
[1766468720624,0.05803778,124.98,124.95,9.89825746]
[1766468723833,0.05803778,124.98,124.95,0.05825746]
[1766468724130,3.95803778,124.98,124.95,0.05825746]
[1766468725726,6.44010093,124.98,124.95,0.05825746]
[1766468725924,3.9,124.97,124.91,17.0499]
[1766468726822,0.05671176,124.95,124.93,0.0603896]
[1766468732532,2.48206315,124.98,124.93,10.4403896]
[1766468732832,3.91,124.99,124.93,10.4403896]
[1766468733728,0.05986931,124.97,124.93,10.4403896]
[1766468779288,4.06986931,124.97,124.93,0.0603896]
[1766468779578,4.06986931,124.97,124.91,10.1]
[1766468780373,4.06986931,124.97,124.93,0.05942131]
[1766468784494,0.05986931,124.97,124.93,10.15942131]